{"text_format":"1","workbook":"xlsx","n_sheets":1,"sheets":["Form"],"not_rendered":{"charts":0,"images":6,"macros":1,"external_links":0,"defined_names":17,"comments":0,"pivot_tables":0},"unopened":[],"bounds":{"document_bytes":16777216,"sheet_cells":100000,"rows_first":2000,"rows_last":500,"rows_between":2000,"halvings":0,"cell_chars":16384,"cell_head_chars":4096},"cells_cut":0,"cells_raw":0,"read":"whole","date_system":"1900"}

{"sheet":"Form","index":0,"n_rows":73,"n_cols":28,"rows_kept":73,"cut":false,"hidden":false,"merged":[[50,9,51,11],[52,9,53,11],[54,15,55,18],[50,1,51,2],[30,13,31,14],[61,20,66,24],[66,1,66,18],[2,12,2,18],[4,20,6,24],[36,20,43,24],[45,20,48,24],[50,20,59,24],[8,20,11,24],[27,20,29,24],[13,20,25,24],[31,20,34,24],[16,17,17,18],[18,17,19,18],[20,17,21,18],[34,13,35,14],[32,11,33,12],[34,11,35,12],[39,12,40,17],[14,11,15,16],[30,17,31,18],[22,17,23,18],[24,17,25,18],[26,17,27,18],[28,17,29,18],[15,1,25,5],[15,6,25,10],[28,1,37,5],[28,6,37,10],[26,1,26,10],[19,15,19,16],[26,11,29,12],[16,13,17,14],[18,13,19,14],[20,13,21,14],[22,13,23,14],[24,13,25,14],[26,13,27,14],[28,13,29,14],[0,1,0,8],[46,1,46,2],[1,1,1,3],[45,1,45,3],[41,3,42,4],[41,6,42,7],[2,1,2,6],[2,7,2,11],[14,1,14,5],[14,6,14,10],[16,11,17,12],[18,11,19,12],[20,11,21,12],[22,11,23,12],[27,1,27,5],[27,6,27,10],[39,1,40,1],[37,11,37,12],[41,9,42,10],[41,1,42,2],[45,6,45,7],[71,1,72,2],[3,1,13,6],[3,7,13,11],[45,4,45,5],[44,1,44,2],[30,11,31,12],[58,18,59,18],[54,9,55,11],[58,9,59,11],[58,1,59,1],[47,15,47,16],[47,1,47,2],[52,12,53,14],[52,15,53,18],[50,7,51,8],[52,7,53,8],[54,7,55,8],[52,3,53,6],[54,2,55,6],[56,2,57,6],[65,1,65,6],[58,7,59,8],[50,3,51,5],[50,6,51,6],[52,1,53,2],[3,12,13,18],[58,2,59,5],[58,6,59,6],[56,7,57,8],[24,11,25,12],[56,12,57,13],[58,12,59,13],[41,12,41,13],[42,12,42,13],[34,17,35,18],[32,17,33,18],[50,12,51,14],[54,12,55,14],[58,14,59,17],[56,14,57,17],[32,13,33,14],[56,9,57,10],[39,2,40,2],[39,4,40,4],[50,15,51,18],[54,1,55,1],[56,18,57,18],[56,11,57,11],[0,16,0,18],[1,16,1,18],[0,13,0,15],[1,13,1,15],[11,26,11,27],[71,3,71,4],[71,5,71,6],[71,7,71,8],[71,9,71,10],[71,11,72,12],[72,3,72,4],[72,5,72,6],[72,7,72,8],[72,9,72,10],[71,13,72,18],[37,13,37,16],[39,7,40,7],[39,10,40,10],[64,16,65,18],[60,1,62,18],[63,1,63,18],[65,14,65,15],[64,7,65,12],[56,1,57,1]]}
[null,"Custom Globe Valve Retrofit Solution Form",null,null,null,null,null,null,null,null,null,null,{"$f":"IF(N1=\"UGSP\",\"Single\", \"\")","v":""},{"$f":"IF(OR(Q1=\"0014\",Q1=\"0004\",Q1=\"0006\",Q1=\"0008\"), \"UGSP\", \"\")","v":""},null,null,{"$f":"IF(ISBLANK(N21),\" \",IF(AND(AB15>0,AB15<=0.5),\"0014\",IF(AND(AB15>=0.501,AB15<=0.75),\"0004\",IF(AND(AB15>=0.76,AB15<=1.125),\"0006\",IF(AND(AB15>=1.13,AB15<=1.5),\"0008\",IF(ISBLANK(AB15),\"\",\"0008\"))))))","v":" "},null,null,null,null,null,null,null,null,null,"New Actuators Drop Down List:"]
[null,"UGSP Series",null,null,{"$f":"IF(AND(AA28=TRUE, AA29=TRUE),\"In OR mm REQUIRED\",IF(AND(AA28=FALSE,AA29=FALSE),\"In or mm REQUIRED\",\"\"))","v":"In or mm REQUIRED"},"INCHES",null,"MILLIMETERS",null,null,null,null,{"$f":"IF(N2=\"UGSP\",\"Double\", \"\")","v":""},{"$f":"IF(OR(Q2=\"0016\",Q2=\"0010\",Q2=\"0012\"), \"UGSP\", \"\")","v":""},null,null,{"$f":"IF(AND(AB15>=0,AB15<=0.5),\"\",IF(AND(AB15>=0.501,AB15<=0.75),\"0016\",IF(AND(AB15>=0.76,AB15<=1.125),\"0010\",IF(AND(AB15>=1.13,AB15<=1.5),\"0012\",IF(ISBLANK(AB15),\"\",\"0012\")))))","v":""},null,null,null,null,null,null,null,null,null,"GM_GK"]
[null,"VALVE STYLE 1",null,null,null,null,null,"VALVE STYLE 2",null,null,null,null,"VALVE STYLE 3",null,null,null,null,null,null,null,null,null,null,null,null,null,"AM_NM"]
[null,null,null,null,null,null,null,null,null,null,null,null,null,null,null,null,null,null,null,null,null,null,null,null,null,null,"AF_NF"]
[null,null,null,null,null,null,null,null,null,null,null,null,null,null,null,null,null,null,null,null,"Step 1: Choose the unit of measurement \nto be used to fill out the form. \nInches or millimeters\n",null,null,null,null,null,"LM"]
[null,null,null,null,null,null,null,null,null,null,null,null,null,null,null,null,null,null,null,null,null,null,null,null,null,null,"LF"]
[null,null,null,null,null,null,null,null,null,null,null,null,null,null,null,null,null,null,null,null,null,null,null,null,null,null,"EF"]
[null,null,null,null,null,null,null,null,null,null,null,null,null,null,null,null,null,null,null,null,null,null,null,null,null,null,"LM_NM_AM_GM_N4"]
[null,null,null,null,null,null,null,null,null,null,null,null,null,null,null,null,null,null,null,null,"Step 2: VALVE STYLE DIMENSIONS Choose the valve style that most closely resembles your valve.",null,null,null,null,null,"AF_NF N4"]
[null,null,null,null,null,null,null,null,null,null,null,null,null,null,null,null,null,null,null,null,null,null,null,null,null,null,"OTHER"]
[]
[null,null,null,null,null,null,null,null,null,null,null,null,null,null,null,null,null,null,null,null,null,null,null,null,null,null,"mm TO INCHES"]
[null,null,null,null,null,null,null,null,null,null,null,null,null,null,null,null,null,null,null,null,null,null,null,null,null,null,"Valve Style",{"$f":"N17","v":0}]
[null,null,null,null,null,null,null,null,null,null,null,null,null,null,null,null,null,null,null,null,"Step 3: Provide the stem height at fully open and fully closed from the bottom of the bonnet to the top of the stem. The \ndifference between these two dimensions\nis the stroke (DIM D2). Provide the major and minor diameter of the bonnet  (or \nbonnet thread spec.) as well as the bonnet height. If applicable provide the minor diameter height and the diameter of the nut across points. Please note any error messages that may appear and make corrections according to them.",null,null,null,null,null,"D1",{"$f":"IF($AA$29=TRUE,N19/25.4,N19)","v":0}]
[null,"VALVE STYLE 4",null,null,null,null,"VALVE STYLE 5",null,null,null,null,"VALVE STYLE DIMENSIONS",null,null,null,null,null,null,null,null,null,null,null,null,null,null,"D2",{"$f":"IF($AA$29=TRUE,N21/25.4,N21)","v":0}]
[null,null,null,null,null,null,null,null,null,null,null,null,null,null,null,null,null,null,null,null,null,null,null,null,null,null,"D3",{"$f":"IF($AA$29=TRUE,N23/25.4,N23)","v":0}]
[null,null,null,null,null,null,null,null,null,null,null,"VALVE STYLE:",null,null,null,null,null,{"$f":"IF(NOT(OR(N17=1,N17=2,N17=3,N17=4, N17=5, N17=6)),\"VALVE STYLE REQUIRED\", IF(N17=6,\"SUPPLY VALVE SKETCH\",\"\"))","v":"VALVE STYLE REQUIRED"},null,null,null,null,null,null,null,null,"E",{"$f":"IF($AA$29=TRUE,N25/25.4,N25)","v":0}]
[null,null,null,null,null,null,null,null,null,null,null,null,null,null,null,null,null,null,null,null,null,null,null,null,null,null,"F",{"$f":"IF($AA$29=TRUE,N27/25.4,N27)","v":0}]
[null,null,null,null,null,null,null,null,null,null,null,"DIM D1              Stem fully up ",null,null,null,null,null,{"$f":"IF(AND(OR(N17=1,N17=2,N17=3,N17=4,N17=5,N17=6),(ISBLANK(N19))),\"CANNOT BE BLANK\",IF(ISNUMBER(SEARCH(\"MM\",N19)),\"DO NOT INCLUDE UNIT OF MEASURE\",IF(ISNUMBER(SEARCH(CHAR(34),N19)),\"DO NOT INCLUDE UNIT OF MEASURE\",IF(ISNUMBER(SEARCH(\"in\",N19)),\"DO NOT INCLUDE UNIT OF MEASURE\", IF(AND(N19>6.5, AA28=TRUE),\"SHORTEN STEM TO UNDER 6.5''\", IF(AND(N19>165,AA29=TRUE), \"SHORTEN STEM TO UNDER 165 mm\", \" \"))))))","v":" "},null,null,null,null,null,null,null,null,"G",{"$f":"IF($AA$29=TRUE,N31/25.4,N31)","v":0}]
[null,null,null,null,null,null,null,null,null,null,null,null,null,null,null,{"$f":"IF(AND(AA28=TRUE, AA29=FALSE, NOT((ISBLANK(N19)))),\"inch(es)\",IF(AND(AA29=TRUE, AA28=FALSE, NOT((ISBLANK(N19)))),\"mm\",\"\"))","v":""},null,null,null,null,null,null,null,null,null,null,"H",{"$f":"IF($AA$29=TRUE,N33/25.4,N33)","v":0}]
[null,null,null,null,null,null,null,null,null,null,null,"DIM D2              (D1-D3) ",null,null,null,null,null,{"$f":"IF(AND(OR(N17=1,N17=2,N17=3,N17=4,N17=5,N17=6),(ISBLANK(N21))),\"CANNOT BE BLANK\",IF(AND(NOT(ISBLANK(N21)),NOT(ISBLANK(N23)),N21<>N19-N23),\"DIM D2 MUST BE DIM D1 - DIM D3\",IF(AND(N21>1.5,AA28=TRUE),\"MAX 1.5’’ WILL NOT OPEN/CLOSE \",IF(AND(N21>38,AA29=TRUE),\" MAX 38 mm WILL NOT OPEN/CLOSE\",IF(ISNUMBER(SEARCH(\"MM\",N21)),\"DO NOT INCLUDE UNIT OF MEASURE\",IF(ISNUMBER(SEARCH(CHAR(34),N21)),\"DO NOT INCLUDE UNIT OF MEASURE\",IF(ISNUMBER(SEARCH(\"in\",N21)),\"DO NOT INCLUDE UNIT OF MEASURE\",\" \")))))))","v":" "},null,null,null,null,null,null,null,null,"J",{"$f":"IF($AA$29=TRUE,N35/25.4,N35)","v":0}]
[null,null,null,null,null,null,null,null,null,null,null,null,null,null,null,{"$f":"IF(AND(AA28=TRUE, AA29=FALSE, NOT((ISBLANK(N21)))),\"inch(es)\",IF(AND(AA29=TRUE, AA28=FALSE, NOT((ISBLANK(N21)))),\"mm\",\"\"))","v":""},null,null,null,null,null,null,null,null,null,null,"Stem Style (A or B)",{"$f":"C40","v":0}]
[null,null,null,null,null,null,null,null,null,null,null,"DIM D3                          Stem down",null,null,null,null,null,{"$f":"IF(AND(OR(N17=1,N17=2,N17=3,N17=4,N17=5, N17=6),(ISBLANK(N23))),\"CANNOT BE BLANK\",IF(ISNUMBER(SEARCH(\"MM\",N23)),\"DO NOT INCLUDE UNIT OF MEASURE\",IF(ISNUMBER(SEARCH(CHAR(34),N23)),\"DO NOT INCLUDE UNIT OF MEASURE\",IF(ISNUMBER(SEARCH(\"in\",N23)),\"DO NOT INCLUDE UNIT OF MEASURE\",\" \"))))","v":" "},null,null,null,null,null,null,null,null,"A",{"$f":"IF($AA$29=TRUE,E40/25.4,E40)","v":0}]
[null,null,null,null,null,null,null,null,null,null,null,null,null,null,null,{"$f":"IF(AND(AA28=TRUE, AA29=FALSE, NOT((ISBLANK(N23)))),\"inch(es)\",IF(AND(AA29=TRUE, AA28=FALSE, NOT((ISBLANK(N23)))),\"mm\",\"\"))","v":""},null,null,null,null,null,null,null,null,null,null,"B",{"$f":"IF($AA$29=TRUE,H40/25.4,H40)","v":0}]
[null,null,null,null,null,null,null,null,null,null,null,"DIM E   Bonnet major diamater",null,null,null,null,null,{"$f":"IF(AND(OR(N17=1,N17=2,N17=3,N17=4,N17=5),(ISBLANK(N25))),\"CANNOT BE BLANK\", IF(N17=6,\"VALVE SKETCH\",IF(ISNUMBER(SEARCH(\"MM\",N25)),\"DO NOT INCLUDE UNIT OF MEASURE\",IF(ISNUMBER(SEARCH(CHAR(34),N25)),\"DO NOT INCLUDE UNIT OF MEASURE\",IF(ISNUMBER(SEARCH(\"in\",N25)),\"DO NOT INCLUDE UNIT OF MEASURE\",\" \")))))","v":" "},null,null,null,null,null,null,null,null,"C (Threads/inch)",{"$f":"K40","v":0}]
[null,null,null,null,null,null,null,null,null,null,null,null,null,null,null,{"$f":"IF(AND(AA28=TRUE, AA29=FALSE, NOT((ISBLANK(N25)))),\"inch(es)\",IF(AND(AA29=TRUE, AA28=FALSE, NOT((ISBLANK(N25)))),\"mm\",\"\"))","v":""},null,null,null,null,null,null,null,null,null,null,"LM or LF",{"$f":"IF(OR(N38=\"LM\",N38=\"LF\"),\"Yes\",\"\")","v":""}]
[null,"VALVE STYLE 6: SKETCH YOUR VALVE STYLE USING ABOVE VALVE STYLE EXAMPLES",null,null,null,null,null,null,null,null,null,"DIM F   Bonnet minor diamater            -OR-                        DIM F   Bonnet Thread Spec EX:10-32",null,null,null,null,null,{"$f":"IF(ISNUMBER(SEARCH(\"MM\",N27)),\"DO NOT INCLUDE UNIT OF MEASURE\",IF(N17=6,\"VALVE SKETCH\",IF(ISNUMBER(SEARCH(CHAR(34),N27)),\"DO NOT INCLUDE UNIT OF MEASURE\",IF(ISNUMBER(SEARCH(\"in\",N27)),\"DO NOT INCLUDE UNIT OF MEASURE\",IF(AND(NOT(ISBLANK(N17)),ISBLANK(N27),ISBLANK(N29)),\"REQUIRE MINOR DIA OR THD. SPEC\",IF(AND(ISBLANK(N27),NOT(ISBLANK(N29))),\"\",IF(AND(OR(N17=1,N17=2,N17=3,N17=4,N17=5), N27>N25),\" DIM F MUST BE LESS THAN DIM E\",\"\")))))))","v":""}]
[null,"STEM STYLE A",null,null,null,null,"STEM STYLE B",null,null,null,null,null,null,null,null,{"$f":"IF(AND(AA28=TRUE, AA29=FALSE, NOT((ISBLANK(N27)))),\"inch(es)\",IF(AND(AA29=TRUE, AA28=FALSE, NOT((ISBLANK(N27)))),\"mm\",\"\"))","v":""},null,null,null,null,"Step 4: If Belimo tech support has advised on which actuator to use fill out 'New Actuator' otherwise leave blank.",null,null,null,null,null,false,"Inches"]
[null,null,null,null,null,null,null,null,null,null,null,null,null,null,null,null,null,{"$f":"IF(N17=6,\"VALVE SKETCH\", IF(AND(NOT(ISBLANK(N17)),ISBLANK(N27),ISBLANK(N29)),\" REQUIRE MINOR DIA OR THD. SPEC\", IF(AND(ISBLANK(N27),NOT(ISBLANK(N29))),\"\",\"\")))","v":""},null,null,null,null,null,null,null,null,false,"Milimeters"]
[]
[null,null,null,null,null,null,null,null,null,null,null,"DIM G   Bonnet mount height",null,null,null,null,null,{"$f":"IF(AND(OR(N17=1,N17=2,N17=3,N17=4,N17=5),(ISBLANK(N31))),\"CANNOT BE BLANK\",IF(N17=6,\"VALVE SKETCH\",IF(ISNUMBER(SEARCH(\"MM\",N31)),\"DO NOT INCLUDE UNIT OF MEASURE\",IF(ISNUMBER(SEARCH(CHAR(34),N31)),\"DO NOT INCLUDE UNIT OF MEASURE\",IF(ISNUMBER(SEARCH(\"in\",N31)),\"DO NOT INCLUDE UNIT OF MEASURE\",IF(N23<N31, \"CANNOT BE MORE THAN DIM D3\",\" \"))))))","v":" "},null,null,null,null,null,null,null,null,"Valve style"]
[null,null,null,null,null,null,null,null,null,null,null,null,null,null,null,{"$f":"IF(AND(AA28=TRUE, AA29=FALSE, NOT((ISBLANK(N31)))),\"inch(es)\",IF(AND(AA29=TRUE, AA28=FALSE, NOT((ISBLANK(N31)))),\"mm\",\"\"))","v":""},null,null,null,null,"Step 5: STEM STYLE DIMENSIONS Choose the stem style that most closely resembles your valve’s stem. ",null,null,null,null,null,1]
[null,null,null,null,null,null,null,null,null,null,null,"DIM H   Bonnet minor diamater height",null,null,null,null,null,{"$f":"IF(AND(OR(N17=1,N17=3,N17=5),(ISBLANK(N33))),\"CANNOT BE BLANK\",IF(N17=6,\"VALVE SKETCH\",IF(ISNUMBER(SEARCH(\"MM\",N33)),\"DO NOT INCLUDE UNIT OF MEASURE\",IF(ISNUMBER(SEARCH(CHAR(34),N33)),\"DO NOT INCLUDE UNIT OF MEASURE\",IF(ISNUMBER(SEARCH(\"in\",N33)),\"DO NOT INCLUDE UNIT OF MEASURE\",IF(AND(OR(N17=3,N17=5),N33>=N31),\"DIM H MUST BE LESS THAN DIM G\",IF(AND(N17=1,N33>N31),\"DIM H MUST BE LESS/EQUAL DIM G\",\" \")))))))","v":" "},null,null,null,null,null,null,null,null,2]
[null,null,null,null,null,null,null,null,null,null,null,null,null,null,null,{"$f":"IF(AND(AA28=TRUE, AA29=FALSE, NOT((ISBLANK(N33)))),\"inch(es)\",IF(AND(AA29=TRUE, AA28=FALSE, NOT((ISBLANK(N33)))),\"mm\",\"\"))","v":""},null,null,null,null,null,null,null,null,null,null,3]
[null,null,null,null,null,null,null,null,null,null,null,"DIM J Packing nut, across points",null,null,null,null,null,{"$f":"IF(AND(OR(N17=3,N17=2,N17=5),(ISBLANK(N35))),\"CANNOT BE BLANK\",IF(N17=6,\"VALVE SKETCH\", IF(ISNUMBER(SEARCH(\"MM\",N35)),\"DO NOT INCLUDE UNIT OF MEASURE\",IF(ISNUMBER(SEARCH(CHAR(34),N35)),\"DO NOT INCLUDE UNIT OF MEASURE\",IF(ISNUMBER(SEARCH(\"in\",N35)),\"DO NOT INCLUDE UNIT OF MEASURE\",\" \")))))","v":" "},null,null,null,null,null,null,null,null,4]
[null,null,null,null,null,null,null,null,null,null,null,null,null,null,null,{"$f":"IF(AND(AA28=TRUE, AA29=FALSE, NOT((ISBLANK(N35)))),\"inch(es)\",IF(AND(AA29=TRUE, AA28=FALSE, NOT((ISBLANK(N35)))),\"mm\",\"\"))","v":""},null,null,null,null,null,null,null,null,null,null,5]
[null,null,null,null,null,null,null,null,null,null,null,null,null,null,null,null,null,null,null,null,"Step 6: Provide the valve stem diameter and length of drive surface. If 'stem style A' provide the thread spec. If 'stem style B' provide the distance of the drive surface to the top of the stem. Please note any error messages that may appear and make corrections according to them.",null,null,null,null,null,6]
[null,null,null,null,null,null,null,null,null,null,null,"NEW ACTUATOR:"]
[]
[null,"STEM STYLE ",null,"DIM A:",null,null,"DIM B:",null,null,"DIM C:",null,null,"  MAP NUMBER:",null,null,null,null,null,null,null,null,null,null,null,null,null,"Shaft Style"]
[null,null,null,null,null,{"$f":"IF(AND(AA28=TRUE, AA29=FALSE, NOT((ISBLANK(E40)))),\"inch(es)\",IF(AND(AA29=TRUE, AA28=FALSE, NOT((ISBLANK(E40)))),\"mm\",\"\"))","v":""},null,null,{"$f":"IF(AND(AA28=TRUE, AA29=FALSE, NOT((ISBLANK(H40)))),\"inch(es)\",IF(AND(AA29=TRUE, AA28=FALSE, NOT((ISBLANK(H40)))),\"mm\",\"\"))","v":""},null,null,{"$f":"IF(AND(C40=\"B\",AA28=TRUE, AA29=FALSE, NOT((ISBLANK(K40)))),\"inch(es)\",IF(AND(C40=\"B\",AA29=TRUE, AA28=FALSE, NOT((ISBLANK(K40)))),\"mm\",\"\"))","v":""},null,null,null,null,null,null,null,null,null,null,null,null,null,null,"A"]
[null,{"$f":"IF(OR(C40=\"A\",C40=\"B\"),\"\", IF(NOT(ISBLANK(N17)),\"STEM STYLE REQUIRED.\",\"STEM STYLE REQUIRED\"))","v":"STEM STYLE REQUIRED"},null,{"$f":"IF(AND(ISBLANK(E40),OR(C40=\"A\",C40=\"B\")),\"CANNOT BE BLANK\",IF(ISNUMBER(SEARCH(\"MM\",E40)),\"DO NOT INCLUDE UNIT OF MEASURE\",IF(ISNUMBER(SEARCH(CHAR(34),E40)),\"DO NOT INCLUDE UNIT OF MEASURE\",IF(ISNUMBER(SEARCH(\"in\",E40)),\"DO NOT INCLUDE UNIT OF MEASURE\", IF(OR(E40=\"X\",E40=\"x\"), \"INVALID INPUT\",\"\")))))","v":""},null,null,{"$f":"IF(AND(ISBLANK(H40),OR(C40=\"A\",C40=\"B\")),\"CANNOT BE BLANK\",IF(ISNUMBER(SEARCH(\"MM\",H40)),\"DO NOT INCLUDE UNIT OF MEASURE\",IF(ISNUMBER(SEARCH(CHAR(34),H40)),\"DO NOT INCLUDE UNIT OF MEASURE\",IF(ISNUMBER(SEARCH(\"in\",H40)),\"DO NOT INCLUDE UNIT OF MEASURE\",IF(AND((NOT(ISBLANK(C40))),H40>N19),\"MUST BE LESS THAN DIM D1\",\"\")))))","v":""},null,null,{"$f":"IF(AND(ISBLANK(K40),OR(C40=\"A\",C40=\"B\")),\"CANNOT BE BLANK\",IF(ISNUMBER(SEARCH(\"MM\",K40)),\"DO NOT INCLUDE UNIT OF MEASURE\",IF(ISNUMBER(SEARCH(CHAR(34),K40)),\"DO NOT INCLUDE UNIT OF MEASURE\",IF(ISNUMBER(SEARCH(\"in\",K40)),\"DO NOT INCLUDE UNIT OF MEASURE\",\"\"))))","v":""},null,{"$f":"IF(OR(M42=\"0014\", M42=\"0004\", M42=\"0006\", M42=\"0008\"),\"SINGLE\", \" \")","v":" "},{"$f":"IF(ISBLANK(N21),\"\",IF(AND(AB15>0,AB15<=0.5),\"0014\",IF(AND(AB15>=0.501,AB15<=0.75),\"0004\",IF(AND(AB15>=0.76,AB15<=1.125),\"0006\",IF(AND(AB15>=1.13,AB15<=1.5),\"0008\",IF(ISBLANK(AB15),\"\",\"0008\"))))))","v":""},null,{"$f":"IF(ISBLANK(N21),\"\",IF(AND(AB15>0,AB15<=0.5),\"1\",IF(AND(AB15>=0.501,AB15<=0.75),\"2\",IF(AND(AB15>=0.76,AB15<=1.125),\"4\",IF(AND(AB15>=1.13,AB15<=1.5),\"6\",IF(ISBLANK(AB15),\"\",\"6\"))))))","v":""},{"$f":"IF(OR(N38=\"LM\", N38=\"LF\"),\"B\", IF(ISBLANK(N38), \" \", \"A\"))","v":" "},{"$f":"IF(ISBLANK(C40), \" \",IF(OR(AA52=\"2\",AA52=\"4\",AA52=\"5\",AA52=\"9\"),AA52,IF(AND(AA52=\"8\",E40>0.24,E40<0.26,K40=\"28\",C40=\"A\"),\"2\",IF(AND(AA52=\"8\",E40>0.365,E40<0.385,K40=\"24\",C40=\"A\"),\"4\",IF(AND(AA52=\"8\",E40>0.49,E40<0.51,K40=\"20\",C40=\"A\"),\"5\",IF(AND(AA52=\"8\",E40>0.4275,E40<0.4475,K40=\"20\",C40=\"A\"),9,8))))))","v":" "},{"$f":"IF(ISBLANK(N19),\" \", IF(AND(AB14>=0,AB14<=3),\"1A\",IF(AND(AB14>3,AB14<=4),\"1B\",IF(AB14>4,\"1C\"))))","v":" "},{"$f":"IF(NOT(ISBLANK(N25)),AB17+0.005,\"\")","v":""},null,null,null,null,null,null,null,"B"]
[null,null,null,null,null,null,null,null,null,null,null,{"$f":"IF(OR(M43=\"0010\", M43=\"0012\", M43=\"0016\"),\"DUAL\", \" \")","v":" "},{"$f":"IF(AND(AB15>=0,AB15<=0.5),\"\",IF(AND(AB15>=0.501,AB15<=0.75),\"0016\",IF(AND(AB15>=0.76,AB15<=1.125),\"0010\",IF(AND(AB15>=1.13,AB15<=1.5),\"0012\",IF(ISBLANK(AB15),\"\",\"0012\")))))","v":""},null,{"$f":"IF(AND(AB15>=0,AB15<=0.5),\"\",IF(AND(AB15>=0.501,AB15<=0.75),\"3\",IF(AND(AB15>=0.76,AB15<=1.125),\"5\",IF(AND(AB15>=1.13,AB15<=1.5),\"7\",IF(ISBLANK(AB15),\"\",\"7\")))))","v":""},{"$f":"IF(OR(N38=\"LM\", N38=\"LF\"),\"B\", IF(ISBLANK(N38), \" \", \"A\"))","v":" "},{"$f":"IF(ISBLANK(C40), \" \",IF(OR(AA53=2,AA53=4,AA53=5,AA53=\"9\"),AA53,IF(AND(AA53=8,E40>0.24,E40<0.26,K40=28,C40=\"A\"),2,IF(AND(AA53=8,E40>0.365,E40<0.385,K40=24,C40=\"A\"),4,IF(AND(AA53=8,E40>0.49,E40<0.51,K40=20,C40=\"A\"),5,IF(AND(AA53=8,E40>0.4275,E40<0.4475,K40=20,C40=\"A\"),9,8))))))","v":" "},{"$f":"IF(ISBLANK(N19),\" \", IF(AND(AB14>=0,AB14<=3),\"1A\",IF(AND(AB14>3,AB14<=4),\"1B\",IF(AB14>4,\"1C\"))))","v":" "},{"$f":"IF(NOT(ISBLANK(N25)),AB17+0.005,\"\")","v":""}]
[]
[null,"ACTUATOR",null,null,null,null,null,null,null,null,null,null,null,null,null,null,null,null,null,null,null,null,null,null,null,null,"Adapter Selection Test (A)"]
[null,"EXISTING ACTUATOR MODEL:",null,null,null,null,"CONTROL TYPE:",null,"ON/OFF",null,"FLOATING POINT",null,null,null,null,null,null,null,null,null,"Step 7: ACTUATOR Provide information on the environment and process that this linkage system will be utilized in.",null,null,null,null,null,{"$f":"IF(E40=0,\"\",IF(AND(E40>0.24,E40<0.26),\"2\",IF(AND(E40>0.365,E40<0.385),\"4\",IF(AND(E40>0.49,E40<0.51),\"5\",IF(AND(E40>0.4275,E40<0.4475),\"9\",IF(NOT(OR(E40=0.25,E40=0.375,E40=0.3125,E40=0.5)),\"8\"))))))","v":""}]
[null,"FAIL SAFE:",null,"YES","NO",null,null,null,null,null,null,"VDC",null,"PWM",null,null,null,null,null,null,null,null,null,null,null,null,{"$f":"IF(E40=0,\"\",IF(AND(E40>0.24,E40<0.26),\"2\",IF(AND(E40>0.365,E40<0.385),\"4\",IF(AND(E40>0.49,E40<0.51),\"5\",IF(AND(E40>0.4275,E40<0.4475),\"9\",IF(NOT(OR(E40=0.25,E40=0.375,E40=0.3125,E40=0.5)),\"8\"))))))","v":""}]
[null,"FAIL POSITION:",null,"NO","NC",null,"INDOOR",null,"OUTDOOR",null,null,"RANGE:",null,null,null,"RANGE:"]
[null,"VOLTAGE:"]
[]
[null,"COMPANY:",null,null,null,null,{"$f":"IF((ISBLANK(D51)),\"REQUIRED\",\"\")","v":"REQUIRED"},"QUANTITY:",null,null,null,null,"VALVE MANUFACTURE:",null,null,null,null,null,null,null,"Step 8: Fill this form as fully as possible. Red fields are absolutely necessary. Error and attention fields will always be in Red. Please note any error messages that \nmay appear and make corrections \naccording to them. Provide dimensions \nto the nearest 0.001”",null,null,null,null,null,"Adapter Selection Test (C (T/in))"]
[null,null,null,null,null,null,null,null,null,null,null,null,null,null,null,null,null,null,null,null,null,null,null,null,null,null,{"$f":"IF(AND(C40=\"A\",AA46=\"2\",K40=\"28\"),\"2\",IF(AND(C40=\"A\",AA46=\"4\",K40=\"24\"),\"4\",IF(AND(C40=\"A\",AA46=\"5\",K40=\"20\"),\"5\",IF(AND(C40=\"A\",AA46=\"9\",K40=\"20\"),\"9\",\"8\"))))","v":"8"}]
[null,"JOB NAME: ",null,null,null,null,null,"MEDIA TEMP: ",null,null,null,null,"VALVE SERIES: ",null,null,null,null,null,null,null,null,null,null,null,null,null,{"$f":"IF(AND(C40=\"A\",AA47=\"2\",K40=\"28\"),2,IF(AND(C40=\"A\",AA47=\"4\",K40=\"24\"),4,IF(AND(C40=\"A\",AA47=\"5\",K40=\"20\"),5,IF(AND(C40=\"A\",AA47=\"9\",K40=\"20\"),\"9\",\"8\"))))","v":"8"}]
[]
[null,"PO#:",null,null,null,null,null,"MEDIA TYPE:",null,null,null,null,"VALVE MODEL:"]
[]
[null,"PHONE#:",null,null,null,null,null,"SYSTEM PRESSURE:",null,null,null,{"$f":"IF((ISBLANK(J57)),\"REQUIRED\",\"\")","v":"REQUIRED"},"VALVE SIZE:",null,null,null,null,null,{"$f":"IF((ISBLANK(O57)),\"REQUIRED\",\"\")","v":"REQUIRED"}]
[]
[null,"EMAIL: ",null,null,null,null,{"$f":"IF((ISBLANK(C59)),\"REQUIRED\",\"\")","v":"REQUIRED"},"VALVE TAG/LOCATION: ",null,null,null,null,"2 WAY/3 WAY: ",null,null,null,null,null,{"$f":"IF((ISBLANK(O59)),\"REQUIRED\",\"\")","v":"REQUIRED"}]
[]
[null,"NOTE: THIS INFORMATION WILL BE UTILIZED IN THE FABRICATION OF A CUSTOM LINKAGE SYSTEM FOR YOUR VALVE REQUIREMENT; THEREFORE, IT IS ESSENTIAL THAT THE ABOVE DIMENSIONS BE FURNISHED WITH READINGS TAKEN TO THE NEAREST .001\". ANY ERRONEOUS DIMENSIONS FURNISHED WHICH RESULT IN IMPROPER FIT OF THIS LINKAGE SYSTEM ARE NOT THE RESPONSIBILITY OF BELIMO AIR CONTROLS. ANY REWORK REQUIRED WILL RESULT IN AN EXTRA CHARGE. "]
[null,null,null,null,null,null,null,null,null,null,null,null,null,null,null,null,null,null,null,null,"Step 9: Click the 'Submit Form' button below or save this form as a .xlsx file and send a copy to Belimo tech support. NOTE: Macro-enabled workbooks (.xlsm file types) cannot be accepted."]
[]
[null,"CUSTOM KITS ARE DESIGNED TO YOUR UNIQUE SPECIFICATIONS AND ARE NOT RETURNABLE\n"]
[]
[null,"COMPANY CONTACT/DIMENSIONS PROVIDED BY:",null,null,null,null,null,null,null,null,null,null,null,null,"DATE:"]
[]
[]
[]
[]
[]
[null,"INTERNAL USE ONLY",null,"QUOTE#",null,null,null,"SO#",null,null,null,"NOTES:"]
[null,null,null,"NEW ACTUATOR:",null,null,null,"Line #"]